Cogmind - Beta 12 @@@ ROGUE MODE // 2023.03.25 @ 16:33:45 Player: Plexion Result: Self-destructed Performance ------------- Evolutions (1) 500 Regions Visited (2) 400 Robots Destroyed (9) 45 Value Destroyed (190) 190 Prototype IDs (0) 0 Alien Tech Used (0) 0 Bonus (0) 0 TOTAL SCORE: 1135 Bonus ------- None Cogmind --------- Core Integrity 366/400 Matter 265/300 Energy 125/125 System Corruption 0% Temperature Cool (0) Movement Treading (240) Ox1 Location -9/Materials Parts ------- > --- POWER (1) -------- Light Ion Engine > --- PROPULSION (3) --- Light Treads Light Treads Light Treads > --- UTILITY (3) ------ Huge Storage Unit > --- WEAPON (2) ------- Assault Rifle Light Assault Rifle > --- INVENTORY (25) --- Light Ion Engine Wheel Medium Laser Grenade Launcher Peak State ------------ > --- POWER ------------ Light Ion Engine > --- PROPULSION ------- Light Treads Light Treads > --- UTILITY ---------- Small Storage Unit Huge Storage Unit > --- WEAPON ----------- Assault Rifle Light Assault Rifle > --- INVENTORY -------- Light Ion Engine Light Treads Medium Laser Grenade Launcher [Rating: 7] Favorites ----------- Power Light Ion Engine Engine Light Ion Engine Propulsion Light Treads Treads Light Treads Wheel Wheel Utility Huge Storage Unit Storage Huge Storage Unit Weapon Light Assault Rifle Ballistic Gun Light Assault Rifle Launcher Grenade Launcher Build | -11 -10 -9 ------- Run | Jun Mat Mat Slots Evolved 2 | . . 2 Power . | . . . Propulsion 1 | . . 1 Utility 1 | . . 1 Weapon . | . . . Parts Attached 14 | 6 4 4 Power 1 | 1 . . Engine 1 | 1 . . Core . | . . . Reactor . | . . . Propulsion 5 | 2 1 2 Treads 4 | 2 . 2 Leg . | . . . Wheel 1 | . 1 . Hover . | . . . Flight . | . . . Utility 2 | 1 1 . Device . | . . . Storage 2 | 1 1 . Processor . | . . . Hackware . | . . . Protection . | . . . Artifact . | . . . Weapon 6 | 2 2 2 Energy Gun . | . . . Energy Cannon . | . . . Ballistic Gun 4 | 2 1 1 Ballistic Cannon . | . . . Launcher 2 | . 1 1 Special Weapon . | . . . Impact Weapon . | . . . Slashing Weapon . | . . . Piercing Weapon . | . . . Special Melee Weapon . | . . . Unidentified Prototypes . | . . . Parts Lost . | . . . Power . | . . . Propulsion . | . . . Utility . | . . . Weapon . | . . . Highest Loss Streak . | . . . To Critical Strikes . | . . . Average Slot Usage (%) 82 | . 85 77 Engine 12 | . 14 11 Treads 28 | . 26 33 Wheel 1 | . 1 . Storage 12 | . 14 11 Ballistic Gun 25 | . 27 22 Naked Turns . | . . . Heaviest Build 87 | 11 87 86 Greatest Support 60 | 40 40 60 Greatest Overweight (x) 8 | . 8 1 Average Overweight (x) 1 | . 2 1 Largest Inventory Capacity 25 | 8 25 25 Average Capacity 19 | 6 19 25 Most Carried 5 | 2 5 5 Average Carried 3 | 1 4 4 Final Capacity 25 | 8 25 25 Final Carried 5 | 2 5 4 Class Distribution -------------------- 100% | Mutant Dominant Class ---------------- Mutant | -10/Materials Mutant | -9/Materials Resources | -11 -10 -9 ----------- Run | Jun Mat Mat Matter Collected 423 | 210 124 89 Remotely . | . . . Salvage Created 282 | . 145 137 Parts 20 | . 12 8 Haulers Intercepted 1 | . 1 . Recyclers Shooed . | . . . Parts Field Recycled . | . . . Retrieved Matter . | . . . Parts Self-Destructed . | . . . Prevented . | . . . Kills | -11 -10 -9 ------- Run | Jun Mat Mat Combat Hostiles Destroyed 6 | . 2 4 Guns 2 | . . 2 AOE 4 | . 2 2 Classes Destroyed 5 | . 4 1 Hauler 1 | . 1 . Recycler 1 | . 1 . Mechanic 1 | . 1 . Swarmer 2 | . 2 . Grunt 4 | . . 4 Best Kill Streak 4 | . 2 4 Combat Bots Only 4 | . 2 4 Max Kills in Single Turn 2 | . 2 1 Gunslinging . | . . . Exploded 2 | . 2 1 Melee . | . . . Uniques/NPCs Destroyed . | . . . Combat | -11 -10 -9 -------- Run | Jun Mat Mat Damage Taken 297 | . 116 181 Core 57 | . 23 34 Absorbed by Shields . | . . . Core Remaining (%) 95 | 100 90 . Volleys Fired 25 | . 17 8 Largest 2 | . 2 2 Hottest 40 | . 40 40 Shots Fired 47 | . 33 14 Gun 44 | . 32 12 Cannon . | . . . Launcher 3 | . 1 2 Special . | . . . Kinetic 44 | . 32 12 Thermal . | . . . Explosive 3 | . 1 2 Electromagnetic . | . . . Robot Hit Streak 9 | . 5 9 Robot Miss Streak 5 | . 5 1 Penetration Max . | . . . Secondary Targets . | . . . Shots Hit Robots 30 | . 18 12 Core Hits 18 | . 9 9 Critical Kills . | . . . Critical Parts Destroyed . | . . . Critical Strikes . | . . . Melee Attacks . | . . . Impact . | . . . Slashing . | . . . Piercing . | . . . Sneak Attacks . | . . . Combat Hostiles . | . . . Follow-up Attacks . | . . . Damage Inflicted 539 | . 267 272 Guns 284 | . 189 95 Cannons . | . . . Explosions 255 | . 78 177 Melee . | . . . Ramming . | . . . Kinetic 284 | . 189 95 Thermal . | . . . Explosive 255 | . 78 177 Electromagnetic . | . . . Impact . | . . . Slashing . | . . . Piercing . | . . . Highest Corruption . | . . . Average Corruption . | . . . Corruption Purged . | . . . Corruption Blocked . | . . . Overload Shots . | . . . Overflow Damage . | . . . Projectiles . | . . . Explosions . | . . . Melee . | . . . Knockbacks . | . . . Impact . | . . . Kinetic . | . . . Secondary . | . . . Self-Inflicted Damage 27 | . . 27 Shots 2 | . . 2 Rammed . | . . . Targets Rammed . | . . . Kicked . | . . . Crushed . | . . . Highest Temperature 9 | . . 9 Average Temperature 4 | . . 4 Received Heat Transfer 87 | . . 87 Siege Activations . | . . . Robots Corrupted . | . . . Combat Hostiles . | . . . Parts Fried . | . . . Impact Corruptions . | . . . Robots Melted . | . . . Combat Hostiles . | . . . Parts Melted . | . . . Heat Transferred . | . . . Parts Sabotaged . | . . . Parts Stolen . | . . . Parts Stripped . | . . . Power Chain Reactions . | . . . Missiles Intercepted . | . . . Alert | -11 -10 -9 ------- Run | Jun Mat Mat Peak Influence 147 | . 88 147 Initial 37 | . . 37 Average 45 | . 31 87 Maximum Alert Level . | . . . Low Security (%) 100 | 100 100 100 Level 1 . | . . . Level 2 . | . . . Level 3 . | . . . Level 4 . | . . . Level 5 . | . . . High Security . | . . . Max Security . | . . . Squads Dispatched 1 | . . 1 Investigation 1 | . . 1 Extermination . | . . . Reinforcement . | . . . Assault . | . . . Garrison . | . . . Intercept . | . . . Searches Triggered . | . . . Construction Impeded . | . . . Haulers Reinforced . | . . . Active Scanning Responses . | . . . Cargo Convoy Interrupts . | . . . Stealth | -11 -10 -9 --------- Run | Jun Mat Mat Distress Signals 1 | . 1 . Communications Jammed . | . . . Distress Signals . | . . . Times Spotted 17 | . 10 7 Peak Tracking Total 5 | . 5 4 Tactical Retreats . | . . . Traps | -11 -10 -9 ------- Run | Jun Mat Mat Traps Triggered . | . . . Indirectly . | . . . Trap Hack Attempts . | . . . Triggered . | . . . Disarmed . | . . . Reprogrammed . | . . . Reused . | . . . Traps Extracted . | . . . Installed . | . . . Triggered . | . . . Machines | -11 -10 -9 ---------- Run | Jun Mat Mat Machines Disabled . | . . . Max in Single Turn . | . . . Machines Repaired . | . . . Machines Sabotaged . | . . . Overloaded Fab Kills . | . . . Hacking | -11 -10 -9 --------- Run | Jun Mat Mat Machines Accessed 3 | . 1 2 Terminals 3 | . 1 2 Fabricators . | . . . Repair Stations . | . . . Recycling Units . | . . . Scanalyzers . | . . . Garrison Access . | . . . Total Hacks 7 | . 3 4 Successful 3 | . 1 2 Failed 3 | . 2 1 Catastrophic . | . . . Database Lockouts 1 | . . 1 Manual 8 | . 3 5 Terminals 7 | . 3 4 Fabricators . | . . . Repair Stations . | . . . Recycling Units . | . . . Scanalyzers . | . . . Garrison Access . | . . . Terminal Hacks 3 | . 1 2 Robot Analysis 2 | . 1 1 Zone Layout 1 | . . 1 Fabricator Hacks . | . . . Repair Station Hacks . | . . . Recycling Unit Hacks . | . . . Scanalyzer . | . . . Garrison Access Hacks . | . . . Unauthorized Hacks . | . . . Terminals . | . . . Fabricators . | . . . Repair Stations . | . . . Recycling Units . | . . . Scanalyzers . | . . . Garrison Access . | . . . Data Cores Recovered . | . . . Used . | . . . Hacking Detections 3 | . 1 2 Full Trace Events 1 | . . 1 Feedback Events . | . . . Feedback Blocked . | . . . Robot Schematics Acquired . | . . . Robots Built . | . . . Authchips . | . . . Time . | . . . Total Robot Build Rating . | . . . Part Schematics Acquired . | . . . Parts Built . | . . . Authchips . | . . . Time . | . . . Total Part Build Rating . | . . . Parts Repaired . | . . . Time . | . . . Parts Recycled . | . . . Recycled Matter . | . . . Retrieved Matter . | . . . Retrieved Components . | . . . Parts Scanalyzed . | . . . Part Schematics Acquired . | . . . Parts Damaged . | . . . Bothacking | -11 -10 -9 ------------ Run | Jun Mat Mat Used RIF Installer . | . . . Robots Hacked . | . . . Non-combat . | . . . Combat . | . . . Robot Hacks Applied . | . . . Relay Couplers Released . | . . . Fabnet Peak Effective % . | . . . Robots Rewired . | . . . Allies Hacked . | . . . Hacks Repelled . | . . . Allies | -11 -10 -9 -------- Run | Jun Mat Mat Total Allies . | . . . Largest Group . | . . . Highest-Rated Group . | . . . Highest-Rated Ally . | . . . Total Orders . | . . . Ally Attacks . | . . . Total Damage . | . . . Kills . | . . . Allies Corrupted . | . . . Allies Melted . | . . . Intel | -11 -10 -9 ------- Run | Jun Mat Mat Robot Analysis Total 2 | . 1 1 Derelict Logs Recovered . | . . . Drone Launches . | . . . Drone Recoveries . | . . . Exploration | -11 -10 -9 ------------- Run | Jun Mat Mat Turns Passed 586 | 78 323 185 Spaces Moved 224 | 43 115 66 Core 1 | 1 . . Treads 205 | 42 97 66 Legs . | . . . Wheels 18 | . 18 . Hover . | . . . Flight . | . . . Fastest Speed 50 | 50 160 240 Average Speed 220 | 157 233 240 Slowest Speed 320 | 160 320 240 Overloaded Moves . | . . . Propulsion Burnouts . | . . . Robots Hopped . | . . . Cave-ins Triggered . | . . . Exploration Rate (%) 14 | 4 24 15 Regions Visited 2 Branch Regions . Pre-discovered Areas . | . . . Known Exits Taken . | . . . Unknown Exits Taken 2 | 1 1 . Scrap Searched . | . . . Spaces Dug . | . . . Terrain Destroyed 11 | . . 11 Melee . | . . . Projectile . | . . . AOE 11 | . . 11 Terrain Rammed . | . . . Walls Destroyed . | . . . Machines Disabled . | . . . Actions | -11 -10 -9 --------- Run | Jun Mat Mat Total 268 | 50 140 78 Wait . | . . . Move 222 | 42 114 66 Hop . | . . . Pick Up 5 | 2 3 . Fast Attach 7 | 6 1 . Attach 1 | . . 1 Detach 1 | . 1 . Swap 6 | . 3 3 Drop 1 | . 1 . Fire 25 | . 17 8 Melee . | . . . Ram . | . . . Kick . | . . . Crush . | . . . Escape Stasis . | . . . Rewire . | . . . Trap . | . . . Miscellaneous . | . . . Route ------- -11/Junkyard -10/Materials -9/Materials History --------- Turn | Location | Event 28 | -11/Junkyard | Discovered new exit (range 16) 79 | -11/Junkyard | Entered Materials 309 | -10/Materials | Build established: Mutant 370 | -10/Materials | Discovered new exit (range 15) 402 | -10/Materials | Entered another Materials area 402 | -9/Materials | Evolved 2 slots: Propulsion x1, Utility x1 453 | -9/Materials | Central database locked down 587 | -9/Materials | Self-destructed Last Messages --------------- 00495_ G-34 Mercenary destroyed. 00502_ G-47 Trooper destroyed. 00504_ G-34 Mercenary destroyed. 00510_ K-01 Serf collects debris. 00515_ Acquired 8 matter. 00517_ The unstable cave ceiling collapses. 00517_ K-01 Serf collects debris. 00517_ Acquired 30 matter. 00520_ Acquired 51 matter. 00521_ K-01 Serf collects debris. 00527_ R-06 Scavenger collects Heat Sink. 00532_ R-06 Scavenger collects Particle Gun. 00535_ R-06 Scavenger collects Ion Engine. 00537_ The unstable cave ceiling collapses. 00538_ K-01 Serf collects debris. 00539_ R-06 Scavenger collects Aluminum Leg. 00540_ K-01 Serf collects debris. 00576_ C-30 ARC bursts open, deploying its payload. 00576_ G-34 Mercenary unfolds itself. 00577_ K-01 Serf cleans the Hadron Collector. Map ----- +----------------------------------------------------+ | ???????????????????????????????????????????? | | ???????????????????????????????????????????? | | ???????????????????????????????????????????? | | ???????????????????????????????????????????? | | ???????????????????????????????????????????? | | ???????????????????????????????????????????? | | ???????????????????????????????????????????? | | ???????????????????????????????????????????? | | ???????????????????????????????????????????? | | ???????????????????????????????????????????? | | ????????????????? ???????????????????????? | | ????????????????+ ???????????????????????? | | ????????????????# ???????????????????????? | | ????????????????# #??????????????????????? | | ????????????????# #??????????????????????? | | ????????????????# #??????????????????????? | | ????????????????# #??????????????????????? | | ????????????????# #??????????????????????? | | ????????????????# #??????????????????????? | | ??????########### #??????????????????????? | | ??????# # #??????????????????????? | | ??????# # #??????????????????????? | | ??????# # #??????????????????????? | | ??????# # #??????????????????????? | | ??????# # #??????? ??????????????? | | ??????# # @#????? ??????????????? | | ??????? # #????? ???????????????? | | ????????? ??# #???? ????????????????? | | ?????????##+##### g#####/#########????????? | | ?????????# g #????????? | | ?????????# g % ????????? | | ?????????# #????????? | | ?????????# """ """ """ """ ?????????? | | ?????????# """ """ """ """?????????????? | | ?????????# """ """ """ """ ?"??????????? | | ?????????# """ """ """ """ T"?????????? | | ?????????# ""?????????? | | ?????????# = r #????????? | | ?????????# #????????? | | ?????????########% #+####### #????????? | | ?????????####### #????????????? | | ?????????# !!# # #????????????? | | ?????????#" !!## ## #????????????? | | ?????????#T ### ## #????????????? | | ?????????#" + ## #????????????? | | ?????????# ### ## + ???????????? | | ?????????# #?# ## ###??????????? | | ?????????# #?# ## #????????????? | | ?????????# #?# ## #????????????? | | ???####### ### ##?########????????????? | +----------------------------------------------------+ Best States ------------- Heat Dissipation 28 Energy Generation 10 Energy Capacity 125 Matter Stores 300 Matter Capacity 300 Sight Range 16 Terrain Scan Density 10 Evasion (%) 40 Recoil Reduction 3 Item Schematics ----------------- None Robot Schematics ------------------ None Fabricated ------------ Nothing Alien Tech Used ----------------- None Achievements -------------- None Challenges ------------ None Game ------ Seed MissileFusionDetonator Manual? 0 Play Time 00:03:33 Cumulative 367.8 hours Start 2023.03.25 @ 16:31:10 End 2023.03.25 @ 16:33:45 Sessions 1 Manual Loads 0 Difficulty Rogue Special Mode None Game No. 458 Rogue 371 Adventurer 87 Explorer 0 Win Type - Total 17 Types 7/0/8/1/1/0/0/0/0 Lore% 86 Gallery% 90 Achievement% 73 Wizard Run 0 Options --------- ASCII 0 Keyboard 1 Movement Numpad Keybinds 0 Fullscreen 1 Font 18/SmallcapsGlow Map View 76x50 Tactical HUD 1 Map Filters NONE Filters NONE Steam 1 RUN: ecce9f58-0137-4a0f-850b-450ab70cc3fa